bitfinex/quotes_SOLUSD_20241209
["timestamp","ask_amount","ask_price","bid_price","bid_amount"]
[1733712075821,20.0,231.57,231.53,117.21103301]
[1733712077409,20.0,231.57,231.45,13.12637058]
[1733712077410,20.0,231.54,231.45,129.09570359]
[1733712077579,20.0,231.54,231.45,125.14050359]
[1733712077986,20.0,231.54,231.47,5.0]
[1733712078395,20.0,231.54,231.49,5.0]
[1733712080189,20.0,231.54,231.45,125.14050359]
[1733712080395,20.0,231.54,231.47,5.0]
[1733712081189,20.0,231.54,231.47,122.21103301]
[1733712082112,20.0,231.54,231.47,117.21103301]
[1733712082609,22.50145326,231.54,231.47,117.21103301]
[1733712087196,4.1176,231.53,231.45,120.14050359]
[1733712096205,4.1176,231.53,231.45,2.92947058]
[1733712096903,20.0,231.5,231.45,2.92947058]
[1733712112130,20.0,231.5,231.42,142.21103301]
[1733712114055,20.0,231.5,231.42,147.21103301]
[1733712118950,5.71931053,231.53,231.45,5.0]
[1733712119345,5.71931053,231.53,231.44,5.0]
[1733712120259,20.0,231.5,231.43,131.13383301]
[1733712120471,20.0,231.5,231.47,5.0]
[1733712122259,2.50145326,231.54,231.47,5.0]
[1733712122440,20.0,231.55,231.47,5.0]
[1733712122850,20.0,231.55,231.53,2.1147981]
[1733712123669,20.0,231.55,231.53,1e-08]
[1733712125847,22.52557905,231.55,231.53,1e-08]
[1733712127756,28.24488958,231.55,231.53,1e-08]
[1733712128072,31.21238948,231.55,231.53,1e-08]
[1733712128268,5.71931053,231.54,231.53,1e-08]
[1733712131591,8.68681043,231.54,231.53,1e-08]
[1733712132185,11.59365694,231.54,231.53,1e-08]
[1733712134587,11.59365694,231.54,231.43,117.21103301]
[1733712134794,20.0,231.51,231.43,117.21103301]
[1733712134995,20.0,231.5,231.43,117.21103301]
[1733712135366,20.0,231.5,231.42,142.21103301]
[1733712137868,4.91036982,231.49,231.42,123.56022201]
[1733712138781,20.0,231.47,231.42,108.37346682]
[1733712139485,20.0,231.46,231.39,112.12736682]
[1733712139884,20.0,231.46,231.39,111.62736682]
[1733712140277,20.0,231.46,231.39,116.62736682]
[1733712144878,20.0,231.46,231.4,5.0]
[1733712145075,20.0,231.47,231.4,5.64808289]
[1733712146786,20.0,231.47,231.4,5.0]
[1733712147203,2.36514717,231.49,231.41,5.0]
[1733712147405,20.0,231.5,231.41,113.37346682]
[1733712147586,20.0,231.52,231.41,113.37346682]
[1733712148211,20.0,231.5,231.41,113.37346682]
[1733712150213,20.0,231.5,231.42,5.0]
[1733712150514,20.0,231.5,231.43,5.0]
[1733712151191,20.0,231.5,231.44,5.0]
[1733712151903,20.0,231.5,231.44,113.37346682]
[1733712154889,20.0,231.5,231.45,5.0]
[1733712155096,20.0,231.5,231.46,113.37346682]
[1733712155410,2.39834201,231.53,231.46,113.37346682]
[1733712155607,4.50276276,231.54,231.46,113.37346682]
[1733712156022,6.81069038,231.54,231.46,113.37346682]
[1733712156595,20.0,231.51,231.46,113.37346682]
[1733712163977,20.0,231.51,231.47,5.0]
[1733712165404,20.0,231.51,231.47,113.37346682]
[1733712171042,20.0,231.51,231.49,10.0]
[1733712171216,20.0,231.53,231.49,118.37346682]
[1733712177880,20.0,231.53,231.49,113.37346682]
[1733712178178,20.0,231.53,231.49,108.37346682]
[1733712178387,20.0,231.53,231.49,113.37346682]
[1733712178571,20.0,231.53,231.49,108.37346682]
[1733712178981,20.0,231.53,231.49,113.37346682]
[1733712179407,20.0,231.53,231.49,108.37346682]
[1733712184179,26.96717025,231.53,231.49,108.37346682]
[1733712185014,3.07930257,231.56,231.51,10.0]
[1733712185178,9.41313258,231.61,231.54,5.0]
[1733712185380,7.58206533,231.61,231.56,5.0]
[1733712185719,2.33056932,231.63,231.56,5.0]
[1733712186006,4.50276276,231.65,231.56,5.0]
[1733712186007,4.50276276,231.65,231.6,5.0]
[1733712186186,4.50276276,231.65,231.61,5.0]
[1733712186187,6.88835654,231.65,231.61,5.0]
[1733712186795,11.79872636,231.65,231.61,5.0]
[1733712187217,20.0,231.62,231.61,5.0]
[1733712187537,9.41313258,231.65,231.61,5.0]
[1733712188702,20.0,231.62,231.61,5.0]
[1733712189503,20.0,231.62,231.61,113.37346682]
[1733712190517,20.0,231.62,231.61,108.37346682]
[1733712192364,20.0,231.62,231.61,113.37346682]
[1733712192628,2.90684651,231.69,231.65,93.37346682]
[1733712192930,2.90684651,231.69,231.66,5.0]
[1733712193304,2.90684651,231.69,231.67,5.0]
[1733712193540,11.62010991,231.72,231.67,5.0]
[1733712194248,11.62010991,231.72,231.67,93.37346682]
[1733712194749,11.62010991,231.72,231.68,5.0]
[1733712195424,11.62010991,231.72,231.67,88.37346682]
[1733712195749,23.776884,231.71,231.67,88.37346682]
[1733712196074,20.0,231.68,231.67,88.37346682]
[1733712197423,20.0,231.67,231.63,93.37346682]
[1733712197626,20.0,231.67,231.63,88.37346682]
[1733712197852,22.46440749,231.67,231.63,88.37346682]
[1733712199257,20.0,231.64,231.63,88.37346682]
[1733712200141,20.0,231.63,231.59,88.37346682]
[1733712200341,20.0,231.63,231.59,93.37346682]
[1733712201575,7.47026266,231.66,231.62,5.0]
[1733712201759,26.68373051,231.71,231.56,4.2532]
[1733712201760,2.90684651,231.71,231.64,98.37346682]
[1733712202242,2.90684651,231.71,231.67,93.37346682]
[1733712202441,2.90684651,231.71,231.68,5.0]
[1733712203449,2.20697733,231.72,231.68,5.0]
[1733712203652,4.50276276,231.73,231.68,5.0]
[1733712204079,20.0,231.71,231.68,5.0]
[1733712204242,24.50276276,231.73,231.68,5.0]
[1733712204449,27.47026266,231.73,231.68,5.0]
[1733712205474,29.7237739,231.73,231.68,5.0]
[1733712206045,27.47026266,231.73,231.7,5.0]
[1733712206380,2.23959218,231.74,231.72,5.0]
[1733712206569,2.90684651,231.76,231.72,5.0]
[1733712207877,20.0,231.75,231.72,5.0]
[1733712208054,9.91622499,231.78,231.72,105.19736682]
[1733712208255,9.91622499,231.78,231.75,5.0]
[1733712209457,20.0,231.75,231.72,88.37346682]
[1733712209649,20.0,231.75,231.73,5.0]
[1733712209849,20.0,231.75,231.73,10.0]
[1733712210078,20.0,231.75,231.73,10.64715111]
[1733712210284,20.0,231.76,231.75,10.0]
[1733712211165,20.0,231.76,231.75,5.0]
[1733712211484,20.0,231.76,231.72,88.37346682]
[1733712211682,20.0,231.73,231.72,88.37346682]
[1733712211982,20.0,231.72,231.7,5.0]
[1733712213294,20.0,231.72,231.69,88.37346682]
[1733712214073,20.0,231.72,231.69,93.37346682]
[1733712214303,20.0,231.72,231.71,5.0]
[1733712214477,20.0,231.72,231.71,10.0]
[1733712216709,20.0,231.72,231.71,98.37346682]
[1733712218379,20.0,231.72,231.71,88.37346682]
[1733712219205,20.0,231.77,231.69,88.37346682]
[1733712219503,2.22124359,231.79,231.69,88.37346682]
[1733712219504,20.0,231.73,231.71,5.0]
[1733712219705,20.0,231.73,231.71,10.0]
[1733712219894,2.22124359,231.79,231.71,99.02069129]
[1733712220107,23.776884,231.8,231.74,5.0]
[1733712221611,20.0,231.77,231.74,5.0]
[1733712223997,20.0,231.77,231.71,88.37346682]
[1733712223998,20.0,231.77,231.72,5.0]
[1733712224693,20.0,231.73,231.71,88.37346682]
[1733712225519,20.0,231.73,231.69,5.0]
[1733712225684,20.0,231.73,231.67,98.37346682]
[1733712225882,20.0,231.73,231.69,5.0]
[1733712226099,23.776884,231.72,231.67,93.37346682]
[1733712226293,20.0,231.69,231.68,5.0]
[1733712226489,20.0,231.69,231.67,88.37346682]
[1733712227109,20.0,231.69,231.66,88.37346682]
[1733712227414,20.0,231.69,231.67,5.0]
[1733712228190,23.776884,231.75,231.69,5.0]
[1733712228718,4.50276276,231.76,231.7,5.0]
[1733712231606,4.50276276,231.76,231.7,93.37346682]
[1733712231812,20.0,231.73,231.7,93.37346682]
[1733712231986,6.71631796,231.76,231.73,93.37346682]
[1733712232307,5.41426503,231.79,231.74,5.0]
[1733712233022,7.68857573,231.79,231.74,5.0]
[1733712233718,20.0,231.76,231.74,5.0]
[1733712236009,20.0,231.76,231.73,93.37346682]
[1733712236829,20.0,231.76,231.73,88.37346682]
[1733712237126,20.0,231.76,231.73,93.37346682]
[1733712237288,20.0,231.76,231.73,88.37346682]
[1733712237923,20.0,231.76,231.74,5.0]
[1733712238626,20.0,231.76,231.73,88.37346682]
[1733712240623,20.0,231.76,231.72,93.37346682]
[1733712241401,20.0,231.76,231.66,93.37346682]
[1733712241720,20.0,231.68,231.66,98.37346682]
[1733712242712,23.776884,231.75,231.69,5.0]
[1733712242928,20.0,231.72,231.7,93.37346682]
[1733712243134,20.0,231.76,231.71,93.37346682]
[1733712246420,23.776884,231.75,231.71,56.61002358]
[1733712246628,20.0,231.72,231.67,66.61002358]
[1733712248116,20.0,231.68,231.67,5.0]
[1733712251060,23.776884,231.78,231.7,10.0]
[1733712251239,8.05202158,231.81,231.72,66.61002358]
[1733712251858,10.24262661,231.81,231.72,66.61002358]
[1733712252270,10.24262661,231.81,231.74,5.0]
[1733712252433,10.24262661,231.81,231.74,10.0]
[1733712252945,3.54925882,231.8,231.74,10.0]
[1733712253143,8.05202158,231.8,231.74,5.0]
[1733712253541,20.0,231.77,231.72,66.61002358]
[1733712254662,20.0,231.78,231.72,66.61002358]
[1733712254869,20.0,231.73,231.72,5.0]
[1733712255570,20.0,231.73,231.7,66.61002358]
[1733712258464,20.0,231.73,231.7,56.61002358]
[1733712258671,20.0,231.73,231.68,66.61002358]
[1733712258963,20.0,231.73,231.68,56.61002358]
[1733712259153,20.0,231.69,231.66,66.61002358]
[1733712262540,20.0,231.69,231.66,56.61002358]
[1733712262739,23.776884,231.68,231.66,37.79902358]
[1733712262963,23.776884,231.68,231.62,5.0]
[1733712262964,20.0,231.65,231.62,5.0]
[1733712264167,20.0,231.65,231.62,10.0]
[1733712266179,20.0,231.67,231.64,5.0]
[1733712266544,20.0,231.65,231.64,10.0]
[1733712267348,20.0,231.65,231.64,5.0]
[1733712267577,20.0,231.65,231.62,33.49902358]
[1733712267764,20.0,231.67,231.62,28.49902358]
[1733712267968,20.0,231.63,231.6,33.49902358]
[1733712268773,23.776884,231.62,231.6,28.49902358]
[1733712268974,28.1054949,231.62,231.56,5.0]
[1733712269279,20.0,231.59,231.57,5.0]
[1733712269748,20.0,231.59,231.58,5.0]
[1733712270276,20.0,231.59,231.56,5.0]
[1733712270438,20.0,231.6,231.58,5.0]
[1733712271064,20.0,231.6,231.58,10.0]
[1733712271370,20.0,231.59,231.58,10.0]
[1733712273664,20.0,231.59,231.58,19.38502358]
[1733712275247,7.96960712,231.67,231.63,5.0]
[1733712275580,6.49905336,231.67,231.63,5.0]
[1733712276696,20.0,231.64,231.63,5.0]
[1733712276870,20.0,231.64,231.63,10.0]
[1733712277080,6.49905336,231.67,231.66,5.0]
[1733712277081,4.3286109,231.67,231.66,5.0]
[1733712277382,3.64099622,231.72,231.68,5.0]
[1733712277582,4.3286109,231.73,231.68,10.0]
[1733712277957,9.96682956,231.73,231.68,10.0]
[1733712278186,12.07260368,231.73,231.68,10.0]
[1733712279175,5.63831941,231.72,231.68,5.0]
[1733712279488,4.3286109,231.71,231.66,19.38502358]
[1733712279697,20.0,231.7,231.66,19.38502358]
[1733712279870,20.0,231.68,231.66,19.38502358]
[1733712281451,20.0,231.68,231.66,14.38502358]
[1733712282676,20.0,231.68,231.64,19.38502358]
[1733712283992,20.0,231.64,231.62,5.0]
[1733712287309,20.0,231.64,231.62,4.5]
[1733712289711,2.15744459,231.65,231.59,18.88502358]
[1733712289712,20.0,231.6,231.59,18.88502358]
[1733712290014,20.0,231.56,231.55,9.5]
[1733712294588,20.0,231.56,231.55,18.88502358]
[1733712303129,20.0,231.56,231.55,9.38502358]
[1733712303432,20.0,231.56,231.55,13.88502358]
[1733712305194,20.0,231.56,231.55,14.38502358]
[1733712305397,20.0,231.56,231.55,18.88502358]
[1733712305828,20.0,231.56,231.55,9.38502358]
[1733712306128,20.0,231.56,231.55,13.88502358]
[1733712306730,20.0,231.56,231.55,4.5]
[1733712306935,7.81480934,231.62,231.6,5.0]
[1733712307801,12.14342024,231.62,231.6,5.0]
[1733712308829,7.81480934,231.62,231.58,5.0]
[1733712309132,20.0,231.59,231.58,5.0]
[1733712312604,20.0,231.59,231.58,14.38502358]
[1733712318061,20.0,231.59,231.54,4.5]
[1733712318272,20.0,231.55,231.54,4.5]
[1733712321571,20.0,231.55,231.52,4.5]
[1733712321757,20.0,231.55,231.54,4.5]
[1733712322672,20.0,231.55,231.52,142.7]
[1733712323058,20.0,231.55,231.54,4.5]
[1733712323274,20.0,231.55,231.52,142.7]
[1733712323454,20.0,231.55,231.54,4.5]
[1733712323642,20.0,231.55,231.52,138.2]
[1733712323854,20.0,231.55,231.53,4.5]
[1733712327600,20.0,231.55,231.49,142.7]
[1733712327805,20.0,231.53,231.49,142.7]
[1733712327974,20.0,231.52,231.51,4.5]
[1733712332799,20.0,231.52,231.49,142.7]
[1733712333006,20.0,231.52,231.51,4.5]
[1733712333213,20.0,231.52,231.49,142.7]
[1733712334331,20.0,231.52,231.51,4.5]
[1733712334688,20.0,231.52,231.49,142.7]
[1733712335385,20.0,231.52,231.49,138.2]
[1733712336915,20.0,231.52,231.5,4.5]
[1733712342119,20.0,231.52,231.46,138.3189378]
[1733712344997,20.0,231.52,231.47,0.64791212]
[1733712345814,20.0,231.52,231.47,138.84791212]
[1733712346124,20.0,231.52,231.47,138.2]
[1733712346821,4.3286109,231.54,231.47,138.2]
[1733712347119,4.3286109,231.54,231.48,0.64787286]
[1733712348227,20.0,231.52,231.48,0.64787286]
[1733712348701,20.0,231.52,231.48,138.84787286]
[1733712348903,20.0,231.52,231.48,138.2]
[1733712349102,20.0,231.52,231.49,0.64774536]
[1733712350235,20.0,231.52,231.48,138.2]
[1733712357803,20.0,231.52,231.46,138.3189378]
[1733712359801,22.06999729,231.52,231.46,138.3189378]
[1733712360204,20.0,231.52,231.47,0.64791523]
[1733712360827,20.0,231.52,231.47,138.84791523]
[1733712361024,20.0,231.52,231.47,138.2]
[1733712361344,5.63831941,231.55,231.48,0.64776526]
[1733712361505,2.91021257,231.58,231.48,0.64776526]
[1733712361813,4.3286109,231.6,231.48,138.84776526]
[1733712362020,5.63831941,231.57,231.48,138.2]
[1733712362516,9.96693031,231.57,231.48,138.2]
[1733712362723,20.0,231.54,231.48,138.2]
[1733712364932,20.0,231.54,231.49,0.64776568]
[1733712365828,20.0,231.54,231.48,138.2]
[1733712368283,20.0,231.54,231.49,0.64780558]
[1733712368554,20.0,231.54,231.49,138.84780558]
[1733712368752,2.00418334,231.6,231.49,138.2]
[1733712369056,8.54853198,231.62,231.5,0.64763735]
[1733712369276,10.65305936,231.62,231.51,8.6043694]
[1733712369454,10.65305936,231.62,231.52,151.8007404]
[1733712369659,7.74284679,231.62,231.52,151.1531694]
[1733712369865,7.74284679,231.62,231.52,142.5488]
[1733712370548,20.0,231.59,231.52,142.5488]
[1733712370749,20.0,231.59,231.53,0.6475775]
[1733712371841,5.63831941,231.62,231.53,147.4519469]
[1733712372037,4.3286109,231.65,231.53,147.4519469]
[1733712372038,4.3286109,231.65,231.56,8.6043694]
[1733712372271,2.91021257,231.68,231.57,147.45179727]
[1733712372565,9.96693031,231.72,231.59,15.8580694]
[1733712372782,9.96693031,231.72,231.63,8.6043694]
[1733712373069,5.63831941,231.72,231.64,0.6472294]
[1733712374167,20.0,231.69,231.64,0.6472294]
[1733712375834,20.0,231.69,231.63,138.2]
[1733712376038,2.46442387,231.68,231.63,138.2]
[1733712376244,20.0,231.65,231.63,138.2]
[1733712377734,20.0,231.65,231.55,4.5155]
[1733712377735,20.0,231.7,231.55,142.7155]
[1733712377938,2.46442387,231.65,231.55,142.7155]
[1733712378157,2.46442387,231.65,231.55,138.2]
[1733712378455,20.0,231.62,231.55,138.2]
[1733712380234,22.46442387,231.62,231.55,138.2]
[1733712380434,4.50286351,231.62,231.55,138.2]
[1733712380664,20.0,231.59,231.55,138.2]
[1733712383850,20.0,231.59,231.56,0.64760916]
[1733712384384,4.50286351,231.62,231.56,138.84760916]
[1733712384666,2.46442387,231.67,231.57,28.041184]
[1733712384869,2.46442387,231.67,231.58,0.64744351]
[1733712385995,4.50286351,231.7,231.59,23.776884]
[1733712386170,4.50286351,231.7,231.61,23.776884]
[1733712386341,4.50286351,231.7,231.62,138.84736836]
[1733712386542,4.50286351,231.7,231.62,138.2]
[1733712387039,20.0,231.69,231.62,138.2]
[1733712387768,20.0,231.69,231.63,0.64740847]
[1733712387971,20.0,231.69,231.62,138.2]
[1733712390476,4.50276276,231.7,231.62,138.2]
[1733712391266,4.50276276,231.7,231.63,0.64746872]
[1733712393882,4.50276276,231.7,231.63,138.84746872]
[1733712394068,4.50276276,231.7,231.63,138.2]
[1733712394273,4.50276276,231.7,231.64,0.64739349]
[1733712394454,4.50276276,231.7,231.64,138.84739349]
[1733712394654,4.48536031,231.74,231.64,138.84739349]
[1733712394655,4.48536031,231.74,231.64,138.2]
[1733712394851,4.48536031,231.74,231.66,173.389384]
[1733712395064,2.02093644,231.74,231.67,138.84728956]
[1733712395265,4.50286351,231.76,231.67,138.2]
[1733712396263,6.53980913,231.76,231.67,138.2]
[1733712396459,20.0,231.73,231.67,138.2]
[1733712396977,24.50286351,231.73,231.67,138.2]
[1733712397495,3.95370326,231.76,231.67,138.2]
[1733712397496,24.50286351,231.72,231.67,138.2]
[1733712398183,20.0,231.71,231.67,138.2]
[1733712398567,4.50286351,231.7,231.67,138.2]
[1733712399290,4.50286351,231.7,231.67,126.1]
[1733712399493,4.50286351,231.7,231.67,116.8]
[1733712401116,4.50286351,231.7,231.67,107.50000001]
[1733712401283,4.50286351,231.7,231.6,89.60000001]
[1733712401482,20.0,231.69,231.6,89.60000001]
[1733712402319,20.0,231.67,231.6,89.60000001]
[1733712408819,4.50286351,231.68,231.6,89.60000001]
[1733712410411,20.0,231.65,231.6,89.60000001]
[1733712411290,25.63821866,231.65,231.6,89.60000001]
[1733712413688,25.63821866,231.65,231.55,6.9933]
[1733712413689,25.63821866,231.65,231.55,96.59330001]
[1733712414315,25.63821866,231.65,231.55,89.60000001]
[1733712414498,28.45646602,231.64,231.55,89.60000001]
[1733712414704,8.45646602,231.64,231.55,89.60000001]
[1733712414927,20.0,231.61,231.55,89.60000001]
[1733712416415,20.0,231.61,231.49,96.77960001]
[1733712416613,25.63821866,231.6,231.49,96.77960001]
[1733712417012,25.63821866,231.6,231.5,0.64776979]
[1733712419007,5.63821866,231.6,231.5,0.64776979]
[1733712419209,3.95370326,231.62,231.5,0.64776979]
[1733712419998,3.95370326,231.62,231.5,90.2477698]
[1733712420197,3.95370326,231.62,231.5,89.60000001]
[1733712420414,23.95370326,231.62,231.51,0.64760371]
[1733712421037,5.63821866,231.65,231.53,102.43556941]
[1733712421332,5.63821866,231.65,231.54,33.02875853]
[1733712422304,3.95370326,231.7,231.54,127.62875854]
[1733712422617,3.95370326,231.7,231.54,126.98125341]
[1733712422818,3.95370326,231.7,231.54,113.37688401]
[1733712423020,3.95370326,231.7,231.54,89.60000001]
[1733712423531,20.0,231.69,231.54,89.60000001]
[1733712423846,3.95370326,231.68,231.55,0.64751669]
[1733712425324,20.0,231.65,231.55,90.2475167]
[1733712425643,20.0,231.65,231.55,89.60000001]
[1733712425826,20.0,231.65,231.56,0.64751251]
[1733712426227,20.0,231.67,231.56,0.64751251]
[1733712429940,20.0,231.67,231.56,90.24751252]
[1733712430147,20.0,231.67,231.56,89.60000001]
[1733712430345,20.0,231.69,231.56,89.60000001]
[1733712430767,3.95370326,231.68,231.56,89.60000001]
[1733712431859,3.95370326,231.68,231.57,0.64759787]
[1733712432354,3.95370326,231.68,231.58,7.3566]
[1733712432569,1.58930087,231.73,231.59,94.86954516]
[1733712432730,3.95370326,231.74,231.59,94.22200001]
[1733712434040,20.0,231.72,231.6,0.64740472]
[1733712434462,23.95370326,231.72,231.6,0.64740472]
[1733712435844,23.95370326,231.72,231.6,90.24740473]
[1733712436045,23.95370326,231.72,231.6,89.60000001]
[1733712436249,23.95370326,231.72,231.61,90.24741228]
[1733712436440,23.776884,231.74,231.61,89.60000001]
[1733712436769,23.95370326,231.71,231.61,89.60000001]
[1733712437233,20.0,231.66,231.61,89.60000001]
[1733712438535,4.01878839,231.75,231.62,0.64743374]
[1733712438741,4.01878839,231.75,231.63,11.953]
[1733712438952,5.54300413,231.78,231.64,90.24725549]
[1733712439160,7.53474394,231.78,231.64,89.60000001]
[1733712439673,3.95370326,231.77,231.64,89.60000001]
[1733712440170,20.0,231.75,231.64,89.60000001]
[1733712440475,20.0,231.75,231.65,0.64726875]
[1733712442771,3.95370326,231.77,231.66,23.776884]
[1733712442940,3.95370326,231.77,231.68,4.4536]
[1733712443139,3.95370326,231.77,231.69,90.24717957]
[1733712443340,3.95370326,231.77,231.69,89.60000001]
[1733712444168,20.0,231.75,231.69,89.60000001]
[1733712444386,20.0,231.75,231.7,0.64718604]
[1733712445167,20.0,231.75,231.69,89.60000001]
[1733712445680,23.58104068,231.78,231.69,89.60000001]
[1733712446071,25.63273603,231.78,231.69,89.60000001]
[1733712446243,20.0,231.74,231.63,97.01260001]
[1733712446572,3.92416646,231.73,231.63,97.01260001]
[1733712450672,3.92416646,231.73,231.64,0.64742977]
[1733712450863,3.92416646,231.73,231.64,90.24742978]
[1733712451071,3.92416646,231.73,231.64,89.60000001]
[1733712451267,2.05169535,231.77,231.66,23.776884]
[1733712451446,2.05169535,231.77,231.67,0.64718481]
[1733712451856,2.05169535,231.77,231.67,90.24718482]
[1733712452066,2.05169535,231.77,231.67,89.60000001]
[1733712452381,20.0,231.74,231.67,89.60000001]
[1733712455374,20.0,231.74,231.68,90.24725745]
[1733712455675,20.0,231.74,231.68,89.60000001]
[1733712459660,20.0,231.74,231.69,5.11066617]
[1733712460081,20.0,231.75,231.69,5.11066617]
[1733712463079,20.0,231.75,231.69,94.71066618]
[1733712463287,20.0,231.75,231.69,94.06340001]
[1733712463788,20.0,231.75,231.7,0.64718865]
[1733712465392,20.0,231.75,231.69,94.06340001]
[1733712467977,3.92416646,231.76,231.7,30.675684]
[1733712468216,6.43682929,231.82,231.7,31.32297945]
[1733712468382,4.50299597,231.82,231.7,120.92297946]
[1733712468706,4.50299597,231.82,231.7,120.27568401]
[1733712469006,4.50299597,231.82,231.71,0.64706609]
[1733712469612,20.0,231.8,231.71,0.64706609]
[1733712472082,20.0,231.8,231.71,90.2470661]
[1733712472284,20.0,231.8,231.71,89.60000001]
[1733712472508,20.0,231.8,231.72,0.64707364]
[1733712475126,20.0,231.8,231.72,90.24707365]
[1733712475417,20.0,231.8,231.72,89.60000001]
[1733712475580,20.0,231.8,231.73,0.64708827]
[1733712476523,21.9541442,231.8,231.73,0.64708827]
[1733712476998,21.9541442,231.8,231.72,89.60000001]
[1733712477199,26.45714017,231.8,231.72,89.60000001]
[1733712477614,21.9541442,231.8,231.72,89.60000001]
[1733712477904,20.0,231.81,231.74,4.3975]
[1733712478224,23.92416646,231.83,231.75,90.24699346]
[1733712478425,23.92416646,231.83,231.75,89.60000001]
[1733712479528,20.0,231.81,231.76,0.64699597]
[1733712481006,20.0,231.83,231.76,0.64699597]
[1733712482431,1.97297791,231.84,231.76,0.64699597]
[1733712482725,20.0,231.87,231.75,89.60000001]
[1733712482898,20.0,231.88,231.75,89.60000001]
[1733712483098,23.64099622,231.87,231.75,89.60000001]
[1733712483534,20.0,231.84,231.75,89.60000001]
[1733712484224,3.64099622,231.86,231.75,89.60000001]
[1733712484447,23.92416646,231.83,231.75,89.60000001]
[1733712484738,20.0,231.8,231.75,89.60000001]
[1733712491138,21.94668262,231.8,231.75,89.60000001]
[1733712491450,20.0,231.76,231.75,89.60000001]
[1733712492955,20.0,231.76,231.7,96.49880001]
[1733712495346,20.0,231.76,231.7,89.60000001]
[1733712495549,20.0,231.72,231.7,89.60000001]
[1733712496619,20.0,231.72,231.64,97.01870001]
[1733712496821,23.95370326,231.72,231.64,97.01870001]
[1733712497559,3.95370326,231.72,231.64,97.01870001]
[1733712499664,3.95370326,231.72,231.64,89.60000001]
[1733712500039,20.0,231.7,231.64,89.60000001]
[1733712500964,23.95370326,231.7,231.64,89.60000001]
[1733712501637,23.95370326,231.7,231.58,101.71990001]
[1733712501834,20.0,231.69,231.58,101.71990001]
[1733712502051,29.59221344,231.69,231.58,101.71990001]
[1733712503237,29.59221344,231.69,231.59,0.64754242]
[1733712503850,31.46355179,231.69,231.59,0.64754242]
[1733712504049,31.46355179,231.69,231.58,101.71990001]
[1733712507645,31.46355179,231.69,231.58,94.34240001]
[1733712507834,31.46355179,231.69,231.58,89.60000001]
[1733712508238,3.64099622,231.68,231.58,89.60000001]
[1733712508638,20.0,231.64,231.58,89.60000001]
[1733712511359,20.0,231.64,231.59,0.64759771]
[1733712511557,9.59221344,231.67,231.59,0.64759771]
[1733712512636,20.0,231.64,231.59,0.64759771]
[1733712513385,20.0,231.64,231.58,89.60000001]
[1733712514959,20.0,231.64,231.59,0.64756916]
[1733712515364,5.63851018,231.67,231.59,90.24756917]
[1733712515575,5.63851018,231.67,231.59,89.60000001]
[1733712515786,5.63851018,231.67,231.6,0.64744728]
[1733712516584,20.0,231.64,231.6,0.64744728]
[1733712517692,4.6845,231.84,231.65,113.37688401]
[1733712517884,7.5458731,231.81,231.67,23.776884]
[1733712518184,7.5458731,231.81,231.68,0.64722748]
[1733712518363,7.5458731,231.81,231.65,89.60000001]
[1733712519063,20.0,231.78,231.65,89.60000001]
[1733712519262,20.0,231.79,231.65,89.60000001]
[1733712519461,4.6364317,231.77,231.65,89.60000001]
[1733712522862,4.6364317,231.77,231.66,0.64733969]
[1733712523084,4.6364317,231.77,231.66,90.2473397]
[1733712523291,4.6364317,231.77,231.66,89.60000001]
[1733712524765,4.6364317,231.77,231.62,89.60000001]
[1733712525062,20.0,231.73,231.62,89.60000001]
[1733712527883,25.0,231.73,231.54,96.62240001]
[1733712528082,20.0,231.69,231.54,96.62240001]
[1733712528287,23.776884,231.68,231.54,96.62240001]